bitfinex/quotes_ETHUSD_20230405
["timestamp","ask_amount","ask_price","bid_price","bid_amount"]
[1680660490451,0.68919355,1913.1,1912.8,0.54406875]
[1680660490750,0.68919355,1913.1,1912.9,0.78414]
[1680660493553,0.68919355,1913.1,1913.0,0.066]
[1680660499748,0.75811291,1913.1,1913.0,0.066]
[1680660499953,3.39239546,1913.1,1913.0,0.066]
[1680660500156,3.39239546,1913.1,1912.6,0.54406875]
[1680660500329,3.39239546,1913.1,1912.7,0.26141]
[1680660500524,0.33923955,1913.0,1912.7,0.26141]
[1680660500725,0.33923955,1913.0,1912.6,0.54406875]
[1680660500938,0.33923955,1913.0,1912.6,0.80548875]
[1680660501352,0.95689823,1913.0,1912.6,0.80548875]
[1680660501542,0.09568982,1912.9,1912.6,0.80548875]
[1680660501939,0.95689823,1913.0,1912.6,1.32832875]
[1680660502166,0.61765868,1913.0,1912.7,0.32639]
[1680660502364,0.06891936,1913.1,1912.7,0.32639]
[1680660503390,0.61804601,1913.0,1912.7,0.84921]
[1680660503691,0.68674255,1913.0,1912.7,0.32639]
[1680660503887,0.68674255,1913.0,1912.7,0.26139]
[1680660504450,0.68674255,1913.0,1912.6,0.80547875]
[1680660505476,0.68674255,1913.0,1912.6,1.62218645]
[1680660505704,0.68674255,1913.0,1912.6,1.36077645]
[1680660505875,0.06867425,1912.9,1912.6,1.62219645]
[1680660507575,0.06867425,1912.9,1912.7,0.54406875]
[1680660507777,0.06867425,1912.9,1912.6,0.80548875]
[1680660508100,1.093,1913.0,1912.7,0.54406875]
[1680660508799,1.093,1913.0,1912.6,1.62219645]
[1680660508968,1.083,1912.9,1912.6,1.62219645]
[1680660509305,1.1913,1912.9,1912.6,1.62219645]
[1680660509829,1.1913,1912.9,1912.7,0.54406875]
[1680660510931,0.008,1913.1,1912.7,1.32828875]
[1680660511139,6.9697,1913.2,1912.7,1.32828875]
[1680660511319,6.9697,1913.2,1912.7,2.14499645]
[1680660511497,5.8797,1913.2,1912.8,0.54406875]
[1680660511691,5.8797,1913.2,1912.9,0.26138]
[1680660512649,11.51128255,1913.1,1912.7,0.80546875]
[1680660512817,1.14750154,1913.0,1912.7,0.80546875]
[1680660513020,3.78178409,1913.0,1912.7,0.54406875]
[1680660513752,3.78178409,1913.0,1912.7,0.80546875]
[1680660514547,1.089,1913.1,1912.7,1.3319179]
[1680660514859,1.087,1913.1,1912.7,1.3319179]
[1680660515217,1.087,1913.1,1912.9,0.26138]
[1680660515431,0.002,1913.2,1912.9,0.78414]
[1680660515662,0.11000001,1913.3,1912.9,1.46103063]
[1680660516707,0.11000001,1913.3,1912.9,2.27773833]
[1680660517049,0.11000001,1913.3,1913.0,0.22777383]
[1680660517308,0.11000001,1913.3,1913.0,0.48913383]
[1680660517883,0.11000001,1913.3,1913.0,0.22777383]
[1680660518252,0.65130977,1913.2,1913.0,0.22777383]
[1680660518473,0.65130977,1913.2,1913.0,1.03320258]
[1680660518783,0.65130977,1913.2,1913.1,0.10332026]
[1680660518988,0.65130977,1913.2,1913.1,0.26135]
[1680660519190,0.65130977,1913.2,1912.9,1.06681875]
[1680660519356,0.65130977,1913.2,1913.1,0.26135]
[1680660520145,0.65130977,1913.2,1913.1,0.78406]
[1680660520779,0.65130977,1913.2,1913.1,1.32812875]
[1680660520994,0.65130977,1913.2,1913.1,1.54297525]
[1680660521464,0.11000001,1913.4,1913.1,1.54297525]
[1680660523957,0.11000001,1913.4,1913.1,0.75891525]
[1680660524164,0.11000001,1913.4,1913.1,0.4761965]
[1680660524374,0.11000001,1913.4,1913.1,0.2148465]
[1680660524577,0.11000001,1913.4,1913.1,0.4761965]
[1680660525214,0.11000001,1913.4,1913.1,0.9989065]
[1680660525429,0.11000001,1913.4,1913.2,0.36121065]
[1680660526930,0.11000001,1913.4,1913.2,0.88389065]
[1680660529151,1.093,1913.6,1913.2,0.88389065]
[1680660532134,6.8295,1913.7,1913.2,0.88389065]
[1680660533252,0.68680378,1913.6,1913.2,0.88389065]
[1680660533437,0.68680378,1913.6,1913.4,0.26131]
[1680660533852,0.68680378,1913.6,1913.3,0.34969907]
[1680660536022,0.68680378,1913.6,1913.4,0.62665117]
[1680660536225,0.68680378,1913.6,1913.5,0.7839]
[1680660536419,0.68450949,1913.6,1913.5,1.03347912]
[1680660536761,0.68450949,1913.6,1913.5,1.02947912]
[1680660537276,0.11000001,1913.8,1913.5,1.02947912]
[1680660537726,0.11000001,1913.8,1913.5,1.64520633]
[1680660537923,0.11000001,1913.8,1913.7,1.8289]
[1680660541062,0.11000001,1913.8,1913.7,7.95316608]
[1680660541262,0.11000001,1913.9,1913.8,0.50362706]
[1680660541463,0.11000001,1913.9,1913.8,1.33075741]
[1680660541646,0.11000001,1913.9,1913.8,2.28163592]
[1680660541977,0.11000001,1913.9,1913.8,1.73828557]
[1680660542341,0.11000001,1913.9,1913.8,2.88644145]
[1680660542681,0.11000001,1913.9,1913.8,2.3430911]
[1680660543233,0.11000001,1913.9,1913.8,2.88644145]
[1680660543478,0.11000001,1913.9,1913.8,2.3430911]
[1680660543834,0.11000001,1913.9,1913.8,1.73828557]
[1680660544254,0.11000001,1913.9,1913.8,0.78740706]
[1680660545637,0.11000001,1913.9,1913.8,0.78378]
[1680660546278,0.74675025,1913.9,1913.8,0.78378]
[1680660554734,0.74675025,1913.9,1913.8,1.38858553]
[1680660555443,0.11000001,1913.9,1913.8,1.38858553]
[1680660555742,0.11000001,1913.9,1913.8,2.44518081]
[1680660556241,0.11000001,1913.9,1913.8,1.38858553]
[1680660557400,0.73710345,1913.9,1913.8,1.38858553]
[1680660558206,0.11000001,1913.9,1913.8,1.38858553]
[1680660558412,0.11000001,1913.9,1913.8,0.78378]
[1680660559417,0.71251319,1913.9,1913.8,0.78378]
[1680660562956,0.79476451,1913.9,1913.6,0.002]
[1680660563161,0.79476451,1913.9,1913.8,0.26126]
[1680660563660,0.79476451,1913.9,1913.7,0.7838]
[1680660563841,0.79476451,1913.9,1913.7,0.26126]
[1680660564859,0.70920494,1913.9,1913.7,0.26126]
[1680660566468,0.70920494,1913.9,1913.6,0.52257]
[1680660566772,0.70920494,1913.9,1913.6,0.26127]
[1680660567859,0.70920494,1913.9,1913.5,0.00362763]
[1680660568059,0.70920494,1913.9,1913.5,0.26491763]
[1680660568527,0.70920494,1913.9,1913.5,0.78751763]
[1680660568727,0.65920494,1913.9,1913.5,0.78751763]
[1680660569446,0.65920494,1913.9,1913.5,0.86626939]
[1680660569859,0.01891309,1913.8,1913.4,0.52262]
[1680660570099,0.01891309,1913.8,1913.5,0.26129]
[1680660570280,0.01891309,1913.8,1913.4,0.26131]
[1680660570486,0.01891309,1913.8,1913.3,1.52884976]
[1680660570794,0.01891309,1913.8,1913.3,0.26131]
[1680660571386,1.087,1913.6,1913.2,0.54335035]
[1680660571603,1.087,1913.6,1913.1,0.80469035]
[1680660571768,1.087,1913.6,1913.1,1.02815799]
[1680660572405,1.087,1913.6,1913.1,1.02215799]
[1680660574604,5.7582,1913.7,1913.3,0.5]
[1680660574871,5.7582,1913.7,1913.3,1.05313923]
[1680660575109,5.7582,1913.7,1913.2,1.33336035]
[1680660575321,6.8482,1913.7,1913.3,0.26132]
[1680660576577,6.8482,1913.7,1913.3,0.78397]
[1680660576795,6.8482,1913.7,1913.3,0.91730203]
[1680660577419,6.8482,1913.7,1913.3,1.46065238]
[1680660577570,6.8482,1913.7,1913.3,1.46665238]
[1680660578207,0.62139815,1913.6,1913.3,1.46665238]
[1680660579579,0.62139815,1913.6,1913.3,0.88800238]
[1680660579782,0.62139815,1913.6,1913.3,0.75467035]
[1680660580012,0.62139815,1913.6,1913.3,2.32263035]
[1680660581105,0.62139815,1913.6,1913.3,1.27732035]
[1680660581794,0.62139815,1913.6,1913.3,0.75467035]
[1680660582006,0.62139815,1913.6,1913.3,1.27732035]
[1680660582300,0.62139815,1913.6,1913.3,1.48672316]
[1680660583039,0.62139815,1913.6,1913.3,0.94337281]
[1680660583176,0.62139815,1913.6,1913.3,1.48672316]
[1680660584125,0.62139815,1913.6,1913.3,2.11337433]
[1680660584275,0.62139815,1913.6,1913.5,0.51586178]
[1680660584625,0.62139815,1913.6,1913.5,3.46291868]
[1680660584780,0.62139815,1913.6,1913.5,3.73483968]
[1680660585425,0.06269176,1913.9,1913.5,3.73483968]
[1680660585672,0.06269176,1913.9,1913.6,0.81565495]
[1680660585673,0.05669176,1913.9,1913.6,0.81565495]
[1680660585970,0.05669176,1913.9,1913.7,1.9104655]
[1680660587230,0.05669176,1913.9,1913.7,2.72612045]
[1680660588433,0.05669176,1913.9,1913.8,0.00362706]
[1680660588623,0.05669176,1913.9,1913.8,0.78740706]
[1680660593248,0.58447324,1913.9,1913.8,0.78740706]
[1680660594379,0.58447324,1913.9,1913.8,1.33125126]
[1680660595011,0.58447324,1913.9,1913.8,0.54021714]
[1680660595180,1.76283366,1913.9,1913.6,0.54021714]
[1680660595384,1.09,1913.7,1913.4,0.81765495]
[1680660595698,1.09,1913.7,1913.3,1.0946287]
[1680660595699,1.083,1913.6,1913.3,1.07697495]
[1680660596289,1.1913,1913.6,1913.3,0.81565495]
[1680660596466,1.1913,1913.6,1913.3,1.07697495]
[1680660600136,1.25928337,1913.8,1913.3,1.59962495]
[1680660600337,1.083,1913.8,1913.3,2.64493495]
[1680660600549,1.083,1913.8,1913.3,3.26612386]
[1680660600846,1.083,1913.8,1913.3,3.70179912]
[1680660602125,1.17160485,1913.9,1913.3,3.70179912]
[1680660602326,0.05669176,1913.9,1913.4,0.81565495]
[1680660602524,0.05669176,1913.9,1913.5,2.72627045]
[1680660602744,0.05669176,1913.9,1913.5,3.33926702]
[1680660603312,0.05669176,1913.9,1913.5,2.72627045]
[1680660605149,0.05669176,1913.9,1913.6,0.54402157]
[1680660605358,0.05669176,1913.9,1913.7,0.78381]
[1680660606336,0.05669176,1913.9,1913.7,0.81781]
[1680660606725,0.05669176,1913.9,1913.7,1.8629]
[1680660606942,0.05669176,1913.9,1913.7,2.40692157]
[1680660607367,0.05669176,1913.9,1913.7,1.36183157]
[1680660608165,0.05669176,1913.9,1913.7,0.83929157]
[1680660608325,0.18266094,1913.9,1913.7,0.29527]
[1680660608531,0.47256695,1913.8,1913.7,0.29527]
[1680660609574,0.05669176,1913.9,1913.7,0.29527]
[1680660609744,0.18455225,1913.9,1913.7,0.29527]
[1680660612963,0.05669176,1913.9,1913.7,0.29527]
[1680660613869,0.05669176,1913.9,1913.7,1.36183157]
[1680660616077,0.05669176,1913.9,1913.7,1.36545882]
[1680660616279,0.05669176,1913.9,1913.8,1.42319067]
[1680660616504,0.05669176,1913.9,1913.8,3.25201067]
[1680660616720,0.05669176,1913.9,1913.8,3.93232921]
[1680660617018,0.05669176,1913.9,1913.8,4.20346777]
[1680660618308,0.05669176,1913.9,1913.8,8.35770051]
[1680660618484,0.05669176,1913.9,1913.8,9.67870051]
[1680660618679,0.05669176,1913.9,1913.8,11.57344521]
[1680660619313,0.05669176,1913.9,1913.8,11.57944521]
[1680660619748,0.05669176,1913.9,1913.8,9.94622774]
[1680660619959,0.05288649,1913.9,1913.8,9.94022774]
[1680660620174,0.05288649,1913.9,1913.8,4.19622774]
[1680660620360,0.05288649,1913.9,1913.8,3.10522774]
[1680660621248,0.05288649,1913.9,1913.8,8.61922774]
[1680660621432,0.05288649,1913.9,1913.8,8.85122774]
[1680660623021,0.05288649,1913.9,1913.8,10.20898791]
[1680660623415,0.05288649,1913.9,1913.8,8.85122774]
[1680660624022,0.05288649,1913.9,1913.8,4.2034665]
[1680660624223,0.05288649,1913.9,1913.8,3.93007119]
[1680660624662,0.05288649,1913.9,1913.8,5.28779515]
[1680660624867,0.05288649,1913.9,1913.8,4.2034665]
[1680660625030,0.05288649,1913.9,1913.8,4.2014665]
[1680660626076,0.05288649,1913.9,1913.8,3.93005538]
[1680660628867,0.05288649,1913.9,1913.8,10.4717065]
[1680660629064,0.05288649,1913.9,1913.8,10.4737065]
[1680660629270,0.05288649,1913.9,1913.8,8.85122774]
[1680660630092,0.05288649,1913.9,1913.8,10.20929234]
[1680660632841,0.05288649,1913.9,1913.8,11.30229234]
[1680660633050,0.05288649,1913.9,1913.8,9.94422774]
[1680660634304,0.11000001,1914.0,1913.9,8.214]
[1680660634531,0.11000001,1914.0,1913.9,12.18149831]
[1680660634730,0.11000001,1914.0,1913.9,13.80081336]
[1680660634942,0.11000001,1914.0,1913.9,23.17031336]
[1680660635296,0.11000001,1914.0,1913.9,23.17394023]
[1680660635767,0.11000001,1914.0,1913.9,23.17397148]
[1680660636441,0.11000001,1914.0,1913.9,21.58597148]
[1680660637149,0.11000001,1914.0,1913.9,22.6720351]
[1680660638341,0.11000001,1914.0,1913.9,21.31421603]
[1680660639629,0.11000001,1914.0,1913.9,15.56658916]
[1680660639963,0.11000001,1914.0,1913.9,16.38110522]
[1680660640269,0.11000001,1914.0,1913.9,15.2950416]
[1680660640438,0.11000001,1914.0,1913.9,13.7690916]
[1680660641362,0.11000001,1914.0,1913.9,11.5690916]
[1680660642167,0.11000001,1914.0,1913.9,12.11215949]
[1680660642532,0.11000001,1914.0,1913.9,11.29764343]
[1680660642932,0.11000001,1914.0,1913.9,10.69829789]
[1680660643132,0.11000001,1914.0,1913.9,1.36379789]
[1680660643328,0.11000001,1914.0,1913.9,1.36179789]
[1680660644365,0.74207161,1914.0,1913.9,1.96114343]
[1680660645995,0.74207161,1914.0,1913.9,0.83930789]
[1680660646167,0.74207161,1914.0,1913.9,1.36179789]
[1680660649456,0.74207161,1914.0,1913.9,0.83930789]
[1680660649697,0.74207161,1914.0,1913.9,1.36179789]
[1680660649906,0.74207161,1914.0,1913.9,0.83930789]
[1680660650421,0.74207161,1914.0,1913.9,0.29624]
[1680660650776,0.74207161,1914.0,1913.9,0.83930789]
[1680660650983,0.74207161,1914.0,1913.9,0.29624]
[1680660651486,0.74207161,1914.0,1913.9,1.36179789]
[1680660652784,1.91487877,1914.0,1913.9,0.035]
[1680660653202,1.93979186,1914.0,1913.9,0.035]
[1680660654396,1.93379186,1914.0,1913.6,0.54306789]
[1680660654627,1.27637919,1913.9,1913.6,0.54306789]
[1680660655418,1.90131869,1913.9,1913.6,0.54306789]
[1680660655934,1.90131869,1913.9,1913.5,0.54306789]
[1680660656091,1.09,1913.7,1913.5,0.54306789]
[1680660656604,1.09,1913.7,1913.4,0.80437789]
[1680660656923,1.199,1913.7,1913.4,0.54306789]
[1680660657315,1.093,1913.5,1913.3,0.54306789]
[1680660657489,1.093,1913.4,1913.3,0.54306789]
[1680660657903,1.093,1913.4,1913.2,1.36358395]
[1680660658132,1.093,1913.4,1913.2,0.54306789]
[1680660658707,1.093,1913.4,1913.2,0.80439789]
[1680660658930,1.093,1913.4,1913.2,0.54306789]
[1680660659310,1.093,1913.4,1913.2,0.80440789]
[1680660659631,1.093,1913.4,1913.2,0.54306789]
[1680660660215,1.2023,1913.4,1913.1,0.54906789]
[1680660660448,1.2023,1913.4,1913.0,0.54306789]
[1680660660646,0.12023,1913.3,1913.0,0.54306789]
[1680660660837,1.09,1913.1,1913.0,0.54306789]
[1680660661033,1.09,1913.1,1912.9,0.54906789]
[1680660661273,1.09,1913.1,1913.0,0.54306789]
[1680660661480,1.09,1913.1,1912.9,1.35758395]
[1680660661773,1.09,1913.0,1912.9,1.35758395]
[1680660661940,1.09,1913.0,1912.9,0.82051606]
[1680660662136,1.09,1913.0,1912.9,0.81451606]
[1680660662334,1.62833119,1913.0,1912.9,3.9586299]
[1680660662571,1.09,1913.0,1912.9,3.9646299]
[1680660662774,1.09,1913.0,1912.9,3.15011384]
[1680660662977,1.09,1913.0,1912.9,3.41149384]
[1680660663151,1.09,1913.0,1912.9,3.42051606]
[1680660663354,1.09,1913.0,1912.9,3.96436465]
[1680660663648,1.09,1913.0,1912.9,4.22574465]
[1680660663860,1.09,1913.0,1912.9,3.68189606]
[1680660664069,1.09,1913.0,1912.9,3.40177168]
[1680660665337,1.09,1913.0,1912.9,2.85786312]
[1680660666780,1.09,1913.0,1912.9,2.59648312]
[1680660667795,1.09,1913.0,1912.9,2.85786312]
[1680660668091,1.098,1913.3,1912.9,3.66640943]
[1680660668245,0.53833119,1913.0,1912.9,3.66640943]
[1680660668871,0.53833119,1913.0,1912.9,4.21031799]
[1680660669454,0.53833119,1913.0,1912.9,3.66640943]
[1680660669857,0.53833119,1913.0,1912.9,4.32038051]
[1680660670252,0.53833119,1913.0,1912.9,4.86428907]
[1680660670467,1.09,1913.3,1912.9,4.86428907]
[1680660670749,1.09,1913.3,1913.1,0.26135]
[1680660671369,0.5389543,1913.2,1913.1,0.26135]
[1680660672648,0.5389543,1913.2,1913.0,0.52273]
[1680660672961,0.36393118,1913.2,1913.1,0.26135]
[1680660673375,0.55275661,1913.2,1913.1,0.26135]
[1680660673944,0.55275661,1913.2,1913.1,0.78406]
[1680660674378,0.55275661,1913.2,1913.0,0.26136]
[1680660674579,0.55275661,1913.2,1912.9,3.41302943]
[1680660674580,0.55275661,1913.2,1912.9,3.67239943]
[1680660674901,1.093,1913.1,1912.9,3.38661312]
[1680660675358,1.093,1913.1,1912.9,3.83039433]
[1680660676908,1.093,1913.1,1912.9,3.38661312]
[1680660677092,1.093,1913.1,1912.9,3.38061312]
[1680660677403,0.55226168,1913.0,1912.9,3.38061312]
[1680660678381,0.55226168,1913.0,1912.9,2.85785312]
[1680660679014,0.55226168,1913.0,1912.9,3.38061312]
[1680660679424,1.64526168,1913.0,1912.9,3.38061312]
[1680660679575,1.64526168,1913.0,1912.9,2.59648312]
[1680660679576,1.80978785,1913.0,1912.9,2.59648312]
[1680660682387,1.64526168,1913.0,1912.9,2.85786312]
[1680660682600,1.64526168,1913.0,1912.9,3.38062312]
[1680660683390,1.64526168,1913.0,1912.9,2.85786312]
[1680660685017,1.64526168,1913.0,1912.9,2.59648312]
[1680660685218,1.80978785,1913.0,1912.9,2.85786312]
[1680660685521,1.80978785,1913.0,1912.9,2.59648312]
[1680660686312,2.90278785,1913.0,1912.9,2.59648312]
[1680660692321,1.64526168,1913.0,1912.9,3.38062312]
[1680660693488,1.64526168,1913.0,1912.9,2.85786312]
[1680660693799,1.6417154,1913.0,1912.9,2.85786312]
[1680660694223,1.6417154,1913.0,1912.9,2.59648312]
[1680660695091,1.6417154,1913.0,1912.9,2.85786312]
[1680660695729,1.6417154,1913.0,1912.9,2.59648312]
[1680660696101,1.6417154,1913.0,1912.9,3.40177168]
[1680660696494,1.6417154,1913.0,1912.9,3.14039168]
[1680660696802,1.6417154,1913.0,1912.9,4.21628774]
[1680660697110,1.6417154,1913.0,1912.9,3.40177168]
[1680660697287,1.6417154,1913.0,1912.9,4.21628774]
[1680660697487,1.6417154,1913.0,1912.9,3.67237918]
[1680660698031,1.6417154,1913.0,1912.9,3.62237918]
[1680660698241,1.6417154,1913.0,1912.9,4.7084428]
[1680660698404,1.6417154,1913.0,1912.9,5.2312028]
[1680660698601,1.6417154,1913.0,1912.9,4.41868674]
[1680660698839,1.6417154,1913.0,1912.9,4.99493732]
[1680660699138,1.6417154,1913.0,1912.9,5.26669277]
[1680660699139,0.5487154,1913.0,1912.9,5.26669277]
[1680660699439,0.5487154,1913.0,1912.9,5.26869277]
[1680660700337,1.099,1913.4,1912.9,3.9108737]
[1680660700515,1.099,1913.4,1913.3,0.80697556]
[1680660700516,1.093,1913.4,1913.3,0.80697556]
[1680660700716,1.099,1913.4,1913.3,0.80697556]
[1680660701338,1.84884137,1913.4,1913.3,0.80697556]
[1680660701757,1.84884137,1913.4,1913.3,0.54565556]
[1680660702103,1.84884137,1913.4,1913.3,0.80697556]
[1680660702308,1.84884137,1913.4,1913.3,0.54565556]
[1680660702905,2.61884551,1913.4,1913.3,0.54565556]
[1680660703109,2.61884551,1913.4,1913.2,0.54565556]
[1680660703301,1.093,1913.3,1913.2,0.54565556]
[1680660705665,1.093,1913.3,1913.1,1.3641389]
[1680660705864,2.183,1913.2,1913.1,0.81848334]
[1680660706061,2.183,1913.2,1913.1,0.5470659]
[1680660706268,2.419,1913.2,1913.1,0.5470659]
[1680660708979,2.413,1913.2,1913.1,0.5470659]
[1680660711381,2.419,1913.2,1913.1,0.5470659]
[1680660711713,2.67290315,1913.2,1913.1,0.5470659]
[1680660712485,5.3071857,1913.2,1913.1,0.5470659]
[1680660712685,5.3091857,1913.2,1913.1,0.5470659]
[1680660713418,6.01169408,1913.2,1913.1,0.5470659]
[1680660715300,3.37741153,1913.2,1913.1,0.5470659]
[1680660715510,3.37541153,1913.2,1913.1,0.5470659]
[1680660716784,3.37541153,1913.2,1913.0,1.36554924]
[1680660717120,1.43054115,1913.1,1913.0,1.36554924]
[1680660717331,1.43654115,1913.1,1913.0,1.36554924]
[1680660717695,1.43654115,1913.1,1913.0,0.81848334]
[1680660718084,1.43654115,1913.1,1913.0,3.31848334]
[1680660718722,1.43654115,1913.1,1913.0,3.86567841]
[1680660719718,1.43654115,1913.1,1913.0,3.31848334]
[1680660720308,1.43654115,1913.1,1913.0,3.47575017]
[1680660720507,1.43654115,1913.1,1913.0,4.02292787]
[1680660720707,1.42800612,1913.1,1913.0,3.47575017]
[1680660721004,1.42800612,1913.1,1913.0,4.02309128]
[1680660721207,1.42800612,1913.1,1913.0,3.47575017]
[1680660722407,1.093,1913.1,1913.0,3.47575017]
[1680660725103,7.19250255,1913.1,1913.0,3.20492963]
[1680660725303,4.20050255,1913.1,1913.0,3.20492963]
[1680660725500,4.19850255,1913.1,1913.0,3.20492963]
[1680660725695,5.35168512,1913.1,1913.0,3.20492963]
[1680660726009,5.35368512,1913.1,1913.0,3.20492963]
[1680660726400,5.35368512,1913.1,1913.0,2.65726683]
[1680660727212,5.11846512,1913.1,1913.0,2.65726683]
[1680660727417,5.35368512,1913.1,1913.0,2.65726683]
[1680660727742,5.11846512,1913.1,1913.0,2.65726683]
[1680660727899,5.35368512,1913.1,1913.0,2.65726683]
[1680660728334,5.99199499,1913.1,1913.0,2.59323584]
[1680660728536,5.75277499,1913.1,1913.0,2.59323584]
[1680660728736,5.98799499,1913.1,1913.0,4.59323584]
[1680660728898,5.99399499,1913.1,1913.0,4.59323584]
[1680660730708,15.13034808,1913.1,1913.0,4.59323584]
[1680660730939,15.13034808,1913.1,1913.0,2.15726683]
[1680660731137,15.12434808,1913.1,1913.0,2.15726683]
[1680660733036,15.12434808,1913.1,1913.0,2.14926763]
[1680660735663,14.65390808,1913.1,1913.0,2.14926763]
[1680660737991,5.75277499,1913.1,1913.0,2.14926763]
[1680660738166,1.73530987,1913.1,1913.0,2.14926763]
[1680660738487,1.73330987,1913.1,1913.0,2.69693043]
[1680660738778,1.73330987,1913.1,1913.0,2.14926763]
[1680660739449,1.73330987,1913.1,1913.0,2.69693043]
[1680660741779,1.73330987,1913.1,1913.0,5.29693043]
[1680660741982,1.73330987,1913.1,1913.0,5.30493043]
[1680660744268,1.73330987,1913.1,1913.0,4.75726763]
[1680660744572,1.73330987,1913.1,1913.0,5.30293043]
[1680660744880,1.73330987,1913.1,1913.0,5.30493043]
[1680660747262,1.73330987,1913.1,1913.0,4.75726763]
[1680660747586,1.90664086,1913.1,1913.0,5.30293043]
[1680660747882,1.90664086,1913.1,1913.0,5.30493043]
[1680660749350,0.5,1913.0,1912.9,0.002]
[1680660749581,16.06194664,1913.0,1912.6,0.64769441]
[1680660749787,1.087,1912.7,1912.6,0.1]
[1680660749989,0.23,1912.7,1912.6,0.64769441]
[1680660750285,1.096,1912.8,1912.6,0.36142]
[1680660750482,1.09,1912.8,1912.7,0.54747333]
[1680660751582,4.101,1913.1,1912.7,0.54747333]
[1680660751777,0.008,1913.2,1912.9,0.54748732]
[1680660751982,0.008,1913.4,1912.9,0.80886732]
[1680660752224,7.06817,1913.5,1912.9,0.80886732]
[1680660752422,0.002,1913.5,1913.0,0.62837405]
[1680660752622,1.90743457,1913.8,1913.1,1.83151732]
[1680660752918,0.006,1913.8,1913.3,0.26132]
[1680660753120,0.006,1913.8,1913.2,0.73426725]
[1680660753121,2.64028255,1913.8,1913.2,0.81243552]
[1680660753509,2.64028255,1913.8,1913.2,1.33511552]
[1680660755143,2.87541255,1913.8,1913.2,1.33511552]
[1680660755314,2.49028255,1913.8,1913.2,1.34111552]
[1680660755651,5.49028255,1913.8,1913.2,1.34111552]
[1680660755839,0.54902825,1913.7,1913.2,0.81843552]
[1680660758419,0.62445972,1913.6,1913.2,0.81843552]
[1680660762032,0.62445972,1913.6,1913.2,0.2709482]
[1680660763212,0.62445972,1913.6,1913.2,3.84111552]
[1680660763413,0.62445972,1913.6,1913.4,0.5]
[1680660763615,0.62445972,1913.6,1913.5,0.2613]
[1680660764045,0.62445972,1913.6,1913.4,1.885]
[1680660764356,36.78491309,1913.9,1913.4,2.14631]
[1680660764527,5.76191309,1913.9,1913.4,2.14631]
[1680660764732,6.6859164,1913.9,1913.4,2.14631]
[1680660765117,6.6859164,1913.9,1913.4,3.71418]
[1680660765356,6.6859164,1913.9,1913.4,2.66893]
[1680660765521,6.6859164,1913.9,1913.4,2.14631]
[1680660767753,6.6859164,1913.9,1913.4,2.66893]
[1680660768054,0.008,1913.9,1913.5,0.266893]
[1680660768257,1.20600001,1914.0,1913.6,0.26128]
[1680660768749,1.20600001,1914.0,1913.7,1.785]
[1680660768953,2.23841691,1914.0,1913.7,1.785]
[1680660769144,0.11600001,1914.0,1913.7,2.04627]
[1680660769470,0.11600001,1914.0,1913.7,1.785]
[1680660769671,0.11000001,1914.0,1913.7,1.785]
[1680660770466,0.11000001,1914.0,1913.7,2.04627]
[1680660771034,0.11000001,1914.0,1913.7,1.785]
[1680660771936,0.11000001,1914.0,1913.7,2.04627]
[1680660772135,0.11000001,1914.0,1913.7,1.785]
[1680660772368,0.11000001,1914.0,1913.7,2.04627]
[1680660772571,0.69693001,1914.0,1913.7,1.785]
[1680660772971,0.01891309,1913.9,1913.5,0.002]
[1680660773171,1.087,1913.8,1913.4,10.294]
[1680660774082,1.087,1913.8,1913.4,12.794]
[1680660774453,3.95641255,1913.8,1913.4,12.794]
[1680660774654,4.43267255,1913.8,1913.4,2.502]
[1680660774977,0.63079126,1913.7,1913.4,2.5]
[1680660775736,1.10108126,1913.7,1913.4,2.5]
[1680660779292,1.10108126,1913.7,1913.5,1.662]
[1680660779587,0.11010813,1913.6,1913.5,1.662]
[1680660779760,0.63079126,1913.7,1913.5,1.662]
[1680660780284,1.10108126,1913.7,1913.4,2.5]
[1680660782079,2.18408126,1913.7,1913.4,2.5]
[1680660782280,0.21840813,1913.6,1913.4,2.5]
[1680660782468,0.45356813,1913.6,1913.4,2.5]
[1680660784107,1.31815,1913.7,1913.4,2.5]
[1680660784408,1.09,1913.6,1913.4,2.5]
[1680660784559,1.32817,1913.5,1913.4,2.5]
[1680660784894,4.66279255,1913.5,1913.4,2.5]
[1680660785103,5.08476181,1913.5,1913.4,2.5]
[1680660785392,5.79227181,1913.5,1913.4,2.5]
[1680660785796,5.79827181,1913.5,1913.4,2.5]
[1680660786285,15.53127181,1913.5,1913.4,2.5]
[1680660786661,18.53127181,1913.5,1913.4,2.5]
[1680660787379,18.5501849,1913.5,1913.4,2.5]
[1680660788480,19.06139097,1913.5,1913.4,2.5]
[1680660789465,19.05539097,1913.5,1913.4,2.44887939]
[1680660790195,20.10059097,1913.5,1913.4,2.44887939]
[1680660790396,18.82539097,1913.5,1913.4,2.39804279]
[1680660790600,17.73939097,1913.5,1913.4,2.39804279]
[1680660791974,17.52518097,1913.5,1913.4,2.39804279]
[1680660792600,18.04778097,1913.5,1913.4,2.39804279]
[1680660792965,2.73368533,1913.5,1913.4,2.39804279]
[1680660793191,1.60420607,1913.5,1913.4,2.39804279]
[1680660793396,1.83420607,1913.5,1913.4,2.39804279]
[1680660795393,0.51120607,1913.5,1913.4,2.39804279]
[1680660795915,0.51120607,1913.5,1913.4,2.65104279]
[1680660797002,0.51120607,1913.5,1913.4,0.253]
[1680660799722,0.51120607,1913.5,1913.4,1.12120655]
[1680660799881,0.51120607,1913.5,1913.4,1.66869387]
[1680660800614,0.51120607,1913.5,1913.4,2.43934505]
[1680660800817,0.51120607,1913.5,1913.4,2.44534505]
[1680660801393,0.11000001,1914.0,1913.4,2.44534505]
[1680660801605,0.11000001,1914.0,1913.6,0.26128]
[1680660802520,0.52057758,1913.9,1913.6,0.26128]
[1680660802679,0.52057758,1913.9,1913.5,0.7731245]
[1680660802881,0.52057758,1913.9,1913.6,0.26128]
[1680660803614,0.52057758,1913.9,1913.5,0.5118145]
[1680660804287,0.52057758,1913.9,1913.5,0.26728]
[1680660804515,1.60357758,1913.9,1913.7,0.269]
[1680660804902,0.52057758,1913.9,1913.7,1.05281]
[1680660805111,0.52057758,1913.9,1913.7,0.53027]
[1680660805729,0.52057758,1913.9,1913.7,0.635554]
[1680660806018,0.52057758,1913.9,1913.7,1.158094]
[1680660806724,0.52057758,1913.9,1913.7,0.635554]
[1680660806886,0.52057758,1913.9,1913.7,1.158094]
[1680660809009,0.52057758,1913.9,1913.7,1.90962973]
[1680660809210,0.52057758,1913.9,1913.8,0.94612576]
[1680660809442,0.52057758,1913.9,1913.8,2.77494576]